[Event "Hungarian Youth-ch U12 2022"]
[Site "Eger"]
[Date "2022.07.28"]
[Round "6.5"]
[White "Feher, Botond"]
[Black "Bod, Marton"]
[Result "1-0"]
[ECO "B21"]
[WhiteElo "1747"]
[BlackElo "1758"]
[Annotator "NA RC COMBH"]
[PlyCount "83"]
[EventDate "2022.07.21"]
[EventType "tourn"]
[EventCountry "HUN"]
[SourceTitle "playchess.com"]
[Source "ChessBase"]
[SourceQuality "1"]
[TimeControl "40/5400+30:1800+30"]

1. e4 {[%emt 0:00:38]} c5 {[%emt 0:00:09]} 2. d4 {[%emt 0:00:04]} cxd4 {[%emt 0:00:12]} 3. c3 {[%emt 0:00:04]} Nf6 {[%emt 0:00:33]} 4. e5 {[%emt 0:00:06]} Nd5 {[%emt 0:00:05]} 5. Qxd4 {[%emt 0:00:05]} e6 {[%emt 0:00:15]} 6. Bd3 {[%emt 0:00:07]} Nc6 {[%emt 0:00:36]} 7. Qe4 {[%emt 0:00:07]} f5 {[%emt 0:00:46]} 8. Qe2 {[%emt 0:00:07]} Qc7 {[%emt 0:02:15]} 9. Nf3 {[%emt 0:00:52]} Be7 {[%emt 0:00:54]} 10. O-O {[%emt 0:01:09]} O-O {[%emt 0:01:18]} 11. a3 {[%emt 0:02:06]} Na5 {[%emt 0:03:30]} 12. Nd4 {[%emt 0:08:15]} a6 {[%emt 0:02:50]} 13. b4 {[%emt 0:06:33]} Nc6 {[%emt 0:01:02]} 14. Nxc6 {[%emt 0:01:08]} Qxc6 {[%emt 0:00:25]} 15. c4 {[%emt 0:01:24]} Nc7 {[%emt 0:00:52]} 16. Nc3 {[%emt 0:06:43]} b5 {[%emt 0:00:58]} 17. c5 {[%emt 0:04:03]} Bb7 {[%emt 0:01:13]} 18. f3 {[%emt 0:00:50]} Bxc5+ {[%emt 0:08:08]} 19. bxc5 {[%emt 0:04:02]} Qxc5+ {[%emt 0:00:10]} 20. Be3 {[%emt 0:00:28]} Qxc3 {[%emt 0:00:58]} 21. Rac1 {[%emt 0:00:32]} Qxa3 {[%emt 0:02:41]} 22. Bc5 {[%emt 0:05:56]} Qa5 {[%emt 0:00:42]} 23. Ra1 {[%emt 0:00:53]} Qxa1 {[%emt 0:01:03]} 24. Rxa1 {[%emt 0:00:06]} Rfc8 {[%emt 0:00:07]} 25. Bd6 {[%emt 0:05:03]} Nd5 {[%emt 0:01:03]} 26. Qd2 {[%emt 0:00:35]} h6 {[%emt 0:01:18]} 27. h3 {[%emt 0:02:16]} Kh7 {[%emt 0:01:02]} 28. h4 {[%emt 0:04:05]} g6 {[%emt 0:01:32]} 29. Bc2 {[%emt 0:02:19]} Rc4 {[%emt 0:01:18]} 30. Qf2 {[%emt 0:01:31]} Rac8 {[%emt 0:00:41]} 31. Bb3 {[%emt 0:00:29]} Rc3 {[%emt 0:01:32]} 32. Bxd5 {[%emt 0:00:44]} Bxd5 {[%emt 0:00:27]} 33. Rxa6 {[%emt 0:02:18]} Rc1+ {[%emt 0:00:39]} 34. Kh2 {[%emt 0:00:24]} h5 {[%emt 0:03:36]} 35. Qa7 {[%emt 0:03:03]} Bc6 {[%emt 0:00:49]} 36. Rxc6 {[%emt 0:00:34]} R1xc6 {[%emt 0:02:07]} 37. Qxd7+ {[%emt 0:00:47]} Kh8 {[%emt 0:00:17]} 38. Qxe6 {[%emt 0:00:21]} b4 {[%emt 0:00:47]} 39. Qf6+ {[%emt 0:00:28]} Kh7 {[%emt 0:00:00]} 40. Qf7+ {[%emt 0:00:00]} Kh8 {[%emt 0:00:00]} 41. Be7 {[%emt 0:00:44]} b3 {[%emt 0:01:51]} 42. e6 {[%emt 0:00:18]} 1-0

[Event "Hungarian Youth-ch U12 2022"]
[Site "Eger"]
[Date "2022.07.29"]
[Round "7.1"]
[White "Bod, Marton"]
[Black "Horvath, Andras"]
[Result "0-1"]
[ECO "C45"]
[WhiteElo "1758"]
[BlackElo "2251"]
[Annotator "TA"]
[PlyCount "69"]
[EventDate "2022.07.21"]
[EventType "tourn"]
[EventCountry "HUN"]
[SourceTitle "playchess.com"]
[Source "ChessBase"]
[SourceQuality "1"]
[TimeControl "40/5400+30:1800+30"]

{[%evp 9,69,0,64,0,0,-4,9,0,3,2,7,0,0,0,0,-22,0,-146,-149,-131,9,12,13,-54,-43,-81,-83,-141,0,-29,-41,-409,-393,-677,-676,-677,-677,-677,-676,-660,-658,-609,-583,-897,-896,-770,-762,-1197,-635,-747,-628,-891,-877,-781,-882,-874,-852,-850,-612,-1165,-566,-1181]} 1. e4 {[%emt 0:00:34]} e5 {[%emt 0:00:37]} 2. Nf3 {[%emt 0:00:39]} Nc6 {[%emt 0:00:18]} 3. d4 {[%emt 0:00:14]} exd4 {[%emt 0:00:09]} 4. Nxd4 {[%emt 0:00:10]} Bc5 {[%emt 0:01:55]} 5. Be3 {[%emt 0:00:39]} Bb6 {[%emt 0:01:49]} (5... Qf6 $11 6. c3 Nge7) 6. g3 {[%emt 0:07:09] C45: Scotch Game.} (6. Nf5 $14) 6... Nf6 $11 {[%emt 0:01:12]} 7. Bg2 {[%emt 0:02:28]} d6 {[%emt 0:00:51]} 8. Nc3 {[%emt 0:05:10] The position is equal.} O-O {[%emt 0:03:22]} 9. Nxc6 {[%emt 0:02:58]} bxc6 {[%emt 0:00:28]} 10. Bxb6 {[%emt 0:01:03]} axb6 {[%emt 0:01:48] [#]} 11. Qd2 $146 {[%emt 0:00:35]} ({Predecessor:} 11. O-O Ra5 12. f4 Be6 13. a4 c5 14. h3 h5 15. b3 c6 16. Qe2 Re8 17. Rad1 {0-1 (61) Sveshnikov,E (2435)-Zeitlein,M (2460) Budapest 1989}) 11... Be6 {[%emt 0:02:56]} 12. f4 {[%emt 0:01:41]} Re8 {[%emt 0:02:03][%cal Of6e4]} 13. Qd3 {[%emt 0:03:57] [#]} (13. O-O $11 {keeps the balance.}) 13... b5 $1 $17 {[%emt 0:11:11]} 14. b3 {[%emt 0:04:53]} Bf5 {[%emt 0:02:25]} (14... b4 $17 15. Ne2 Bc8) 15. O-O $1 $11 {[%emt 0:01:27]} Bd7 {[%emt 0:01:20]} 16. e5 {[%emt 0:06:52]} (16. a4 $11) 16... dxe5 $15 {[%emt 0:00:35]} 17. fxe5 {[%emt 0:00:18]} Rxe5 {[%emt 0:03:36] ...Qe7 is the strong threat.} 18. Rad1 {[%emt 0:06:03]} (18. Rae1 $142 Rxe1 19. Rxe1) 18... Re6 {[%emt 0:07:17]} (18... Qe7 $17 {White must now prevent ...Bg4.} 19. Rd2 (19. Rxf6 $2 gxf6 20. Qxd7 Re1+ 21. Bf1 Qe3+ 22. Kg2 Qxc3 $19) 19... Re8) 19. Rxf6 {[%emt 0:06:33]} Qxf6 {[%emt 0:01:24]} 20. Qxd7 {[%emt 0:00:17][%mdl 8192] White does not recover from this.} ({White must play} 20. Ne4 $15 Rxe4 21. Qxe4 (21. Bxe4 Bg4 $15)) 20... Qxc3 $19 {[%emt 0:00:59]} 21. Qxc7 $2 {[%emt 0:02:11]} (21. Qd8+ Re8 22. Qd2 Qc5+ 23. Qf2 Qxf2+ 24. Kxf2) 21... Re1+ {[%emt 0:08:54] Black is clearly winning.} 22. Rxe1 {[%emt 0:00:17]} Qxe1+ {[%emt 0:00:11][%mdl 4096] Endgame KQR-KQB} 23. Bf1 {[%emt 0:00:04]} Qe3+ {[%emt 0:01:00]} 24. Kg2 {[%emt 0:00:49]} Qd2+ {[%emt 0:05:23]} 25. Kh3 {[%emt 0:01:03]} Qxc2 {[%emt 0:03:12] [#] Hoping for ...Qf5+.} 26. Bg2 {[%emt 0:02:16]} Qf5+ {[%emt 0:02:18]} 27. g4 {[%emt 0:00:13]} Qd3+ {[%emt 0:01:40]} 28. Kh4 {[%emt 0:00:14]} Qd8+ {[%emt 0:02:48]} 29. Qxd8+ {[%emt 0:00:15]} Rxd8 {[%emt 0:00:08]} 30. Bxc6 {[%emt 0:00:08] KR-KB} b4 {[%emt 0:01:03]} 31. Kg3 {[%emt 0:01:59]} Rd2 {[%emt 0:00:25]} 32. h4 {[%emt 0:00:23]} Rxa2 {[%emt 0:00:55]} 33. Kf3 {[%emt 0:00:14]} Kf8 {[%emt 0:01:02]} 34. Ke3 {[%emt 0:00:25]} Rh2 {[%emt 0:00:56]} 35. Kd4 {Weighted Error Value: White=1.03/Black=0.44} 0-1

[Event "Hungarian Youth-ch U12 2022"]
[Site "Eger"]
[Date "2022.07.29"]
[Round "7.2"]
[White "Karacsonyi, Bank"]
[Black "Feher, Botond"]
[Result "1-0"]
[ECO "B38"]
[WhiteElo "1791"]
[BlackElo "1747"]
[Annotator "NA RC COMBH"]
[PlyCount "147"]
[EventDate "2022.07.21"]
[EventType "tourn"]
[EventCountry "HUN"]
[SourceTitle "playchess.com"]
[Source "ChessBase"]
[SourceQuality "1"]
[TimeControl "40/5400+30:1800+30"]

1. e4 {[%emt 0:00:36]} c5 {[%emt 0:00:42]} 2. Nf3 {[%emt 0:00:05]} Nc6 {[%emt 0:00:07]} 3. d4 {[%emt 0:00:05]} cxd4 {[%emt 0:00:06]} 4. Nxd4 {[%emt 0:00:03]} g6 {[%emt 0:00:19]} 5. c4 {[%emt 0:00:26]} Bg7 {[%emt 0:00:08]} 6. Be3 {[%emt 0:00:05]} Nf6 {[%emt 0:00:11]} 7. Nc3 {[%emt 0:00:09]} d6 {[%emt 0:00:09]} 8. Be2 {[%emt 0:00:15]} O-O {[%emt 0:00:27]} 9. O-O {[%emt 0:00:10]} Bd7 {[%emt 0:00:25]} 10. Qd2 {[%emt 0:00:12]} Nxd4 {[%emt 0:00:11]} 11. Bxd4 {[%emt 0:00:05]} Bc6 {[%emt 0:00:07]} 12. f3 {[%emt 0:00:05]} a5 {[%emt 0:00:12]} 13. b3 {[%emt 0:00:04]} Nd7 {[%emt 0:00:12]} 14. Be3 {[%emt 0:00:05]} Nc5 {[%emt 0:00:57]} 15. Rab1 {[%emt 0:00:30]} Qb6 {[%emt 0:07:51]} 16. Rfc1 {[%emt 0:02:50]} Rfc8 {[%emt 0:05:01]} 17. a3 {[%emt 0:01:25]} Qd8 {[%emt 0:17:35]} 18. Bd1 {[%emt 0:22:07]} b6 {[%emt 0:10:57]} 19. Nd5 {[%emt 0:02:39]} Bxd5 {[%emt 0:06:15]} 20. cxd5 {[%emt 0:05:24]} Nd7 {[%emt 0:05:36]} 21. Be2 {[%emt 0:02:02]} Ra7 {[%emt 0:10:27]} 22. Bb5 {[%emt 0:07:59]} Rxc1+ {[%emt 0:09:21]} 23. Rxc1 {[%emt 0:00:24]} Nc5 {[%emt 0:00:17]} 24. Rb1 {[%emt 0:01:13]} Rc7 {[%emt 0:01:45]} 25. b4 {[%emt 0:03:57]} axb4 {[%emt 0:00:40]} 26. axb4 {[%emt 0:00:12]} Nd7 {[%emt 0:00:14]} 27. Rc1 {[%emt 0:00:53]} Nf8 {[%emt 0:06:25]} 28. Bc6 {[%emt 0:01:51]} Rc8 {[%emt 0:01:45]} 29. Qe2 {[%emt 0:03:12]} h5 {[%emt 0:02:01]} 30. Qb5 {[%emt 0:02:06]} Rb8 {[%emt 0:00:11]} 31. Rc2 {[%emt 0:00:42]} e6 {[%emt 0:02:30]} 32. Rd2 {[%emt 0:04:12]} Qh4 {[%emt 0:02:25]} 33. Rd1 {[%emt 0:02:35]} Be5 {[%emt 0:00:45]} 34. h3 g5 {[%emt 0:00:55]} 35. Qf1 {[%emt 0:16:07]} Ng6 {[%emt 0:01:09]} 36. Qe1 {[%emt 0:01:52]} Bg3 {[%emt 0:02:04]} 37. Bf2 {[%emt 0:00:20]} Bxf2+ {[%emt 0:01:53]} 38. Qxf2 {[%emt 0:00:07]} Qxf2+ {[%emt 0:00:49]} 39. Kxf2 {[%emt 0:00:08]} e5 {[%emt 0:01:12]} 40. Rc1 {[%emt 0:00:00]} Ne7 {[%emt 0:00:00]} 41. b5 {[%emt 0:02:46]} Ng6 {[%emt 0:26:54]} 42. g3 {[%emt 0:06:16]} Nf8 {[%emt 0:01:00]} 43. Ke3 {[%emt 0:00:43]} Kg7 {[%emt 0:02:43]} 44. Rh1 {[%emt 0:04:06]} Kg6 {[%emt 0:01:32]} 45. h4 {[%emt 0:00:44]} gxh4 {[%emt 0:01:01]} 46. Rxh4 {[%emt 0:00:11]} Nh7 {[%emt 0:01:16]} 47. Rh1 {[%emt 0:00:58]} f6 {[%emt 0:00:53]} 48. Ra1 {[%emt 0:02:21]} Nf8 {[%emt 0:00:28]} 49. Kf2 {[%emt 0:00:54]} Kg5 {[%emt 0:00:14]} 50. Kg2 {[%emt 0:00:22]} h4 {[%emt 0:01:13]} 51. Ra7 {[%emt 0:00:53]} hxg3 {[%emt 0:00:15]} 52. Kxg3 {[%emt 0:00:05]} f5 {[%emt 0:00:23]} 53. Rf7 {[%emt 0:01:24]} fxe4 {[%emt 0:00:36]} 54. fxe4 {[%emt 0:00:06]} Kg6 {[%emt 0:00:06]} 55. Rc7 {[%emt 0:00:51]} Kg5 {[%emt 0:00:34]} 56. Ra7 {[%emt 0:00:58]} Kh5 {[%emt 0:00:23]} 57. Bd7 {[%emt 0:02:40]} Kg5 {[%emt 0:00:25]} 58. Bf5 {[%emt 0:00:34]} Kf6 {[%emt 0:03:34]} 59. Kg4 {[%emt 0:00:33]} Ng6 {[%emt 0:01:15]} 60. Bxg6 {[%emt 0:01:08]} Kxg6 {[%emt 0:00:01]} 61. Rd7 {[%emt 0:00:03]} Rf8 {[%emt 0:00:02]} 62. Rxd6+ {[%emt 0:00:32]} Kg7 {[%emt 0:00:06]} 63. Rxb6 {[%emt 0:00:28]} Rf4+ {[%emt 0:00:03]} 64. Kg5 {[%emt 0:00:07]} Rxe4 {[%emt 0:00:05]} 65. Rb7+ {[%emt 0:00:04]} Kf8 {[%emt 0:00:20]} 66. Kf6 {[%emt 0:00:25]} Ke8 {[%emt 0:00:11]} 67. d6 {[%emt 0:00:17]} Kd8 {[%emt 0:00:07]} 68. Ke6 {[%emt 0:00:06]} Kc8 {[%emt 0:00:26]} 69. Rh7 {[%emt 0:00:14]} Rd4 {[%emt 0:01:24]} 70. Ke7 {[%emt 0:00:44]} e4 {[%emt 0:00:20]} 71. Rh8+ {[%emt 0:00:06]} Kb7 {[%emt 0:00:08]} 72. d7 {[%emt 0:00:07]} e3 {[%emt 0:00:18]} 73. d8=Q {[%emt 0:00:22]} Rxd8 {[%emt 0:00:08]} 74. Kxd8 {[%emt 0:00:11]} 1-0

[Event "Hungarian Youth-ch U12 2022"]
[Site "Eger"]
[Date "2022.07.29"]
[Round "7.3"]
[White "Horvath, Matyas Sandor"]
[Black "Juhasz, Edmond"]
[Result "0-1"]
[ECO "D02"]
[WhiteElo "1431"]
[BlackElo "1510"]
[Annotator "NA RC COMBH"]
[PlyCount "104"]
[EventDate "2022.07.21"]
[EventType "tourn"]
[EventCountry "HUN"]
[SourceTitle "playchess.com"]
[Source "ChessBase"]
[SourceQuality "1"]
[TimeControl "40/5400+30:1800+30"]

1. d4 {[%emt 0:00:32]} d5 {[%emt 0:00:49]} 2. Nf3 {[%emt 0:00:21]} Nf6 {[%emt 0:00:21]} 3. Bf4 {[%emt 0:00:48]} Bf5 {[%emt 0:01:08]} 4. e3 {[%emt 0:01:04]} e6 {[%emt 0:01:21]} 5. c3 {[%emt 0:01:35]} c6 {[%emt 0:00:42]} 6. Bd3 {[%emt 0:03:06]} Bxd3 {[%emt 0:01:59]} 7. Qxd3 {[%emt 0:00:23]} Ne4 {[%emt 0:00:51]} 8. Nbd2 {[%emt 0:02:16]} Nxd2 {[%emt 0:00:29]} 9. Nxd2 {[%emt 0:01:36]} Bd6 {[%emt 0:00:43]} 10. Bxd6 {[%emt 0:02:29]} Qxd6 {[%emt 0:00:08]} 11. O-O {[%emt 0:00:15]} Nd7 {[%emt 0:01:05]} 12. Rfe1 {[%emt 0:02:10]} c5 {[%emt 0:05:53]} 13. e4 {[%emt 0:08:51]} c4 {[%emt 0:03:34]} 14. Qe2 {[%emt 0:03:45]} O-O {[%emt 0:02:12]} 15. exd5 {[%emt 0:02:08]} exd5 {[%emt 0:00:24]} 16. Qe7 {[%emt 0:02:30]} Qxe7 {[%emt 0:07:30]} 17. Rxe7 {[%emt 0:00:46]} Rfd8 {[%emt 0:00:12]} 18. Nf3 {[%emt 0:05:01]} Kf8 {[%emt 0:02:17]} 19. Rae1 {[%emt 0:04:41]} h6 {[%emt 0:06:01]} 20. Nd2 {[%emt 0:09:57]} Re8 {[%emt 0:05:42]} 21. Rxe8+ {[%emt 0:05:49]} Rxe8 {[%emt 0:00:08]} 22. Rxe8+ {[%emt 0:00:53]} Kxe8 {[%emt 0:00:19]} 23. f3 {[%emt 0:00:29]} b5 {[%emt 0:00:30]} 24. b4 {[%emt 0:03:01]} Nb6 {[%emt 0:01:23]} 25. Kf2 {[%emt 0:01:40]} Na4 {[%emt 0:01:47]} 26. Nb1 {[%emt 0:00:14]} Nb2 {[%emt 0:01:22]} 27. Ke3 {[%emt 0:02:02]} Nd3 {[%emt 0:00:39]} 28. Na3 {[%emt 0:03:27]} a6 {[%emt 0:00:41]} 29. Kd2 {[%emt 0:00:45]} f5 {[%emt 0:03:26]} 30. g3 {[%emt 0:01:20]} Ke7 {[%emt 0:06:35]} 31. Nc2 {[%emt 0:02:31]} Ke6 {[%emt 0:01:27]} 32. Ne1 {[%emt 0:03:41]} Nxe1 {[%emt 0:01:08]} 33. Kxe1 {[%emt 0:00:10]} f4 {[%emt 0:07:53]} 34. gxf4 {[%emt 0:03:55]} Kf5 {[%emt 0:00:11]} 35. Kf2 {[%emt 0:00:28]} Kxf4 {[%emt 0:00:09]} 36. Ke2 {[%emt 0:00:39]} g5 {[%emt 0:01:02]} 37. Kf2 {[%emt 0:00:34]} h5 {[%emt 0:01:05]} 38. a3 {[%emt 0:05:02]} Kf5 {[%emt 0:07:11]} 39. Ke3 {[%emt 0:05:56]} g4 {[%emt 0:01:37]} 40. Kf2 {[%emt 0:00:00]} Kf4 {[%emt 0:00:00]} 41. fxg4 {[%emt 0:03:29]} hxg4 {[%emt 0:07:39]} 42. Kg2 {[%emt 0:00:48]} Ke3 {[%emt 0:00:49]} 43. Kg3 {[%emt 0:00:13]} Kd3 {[%emt 0:00:09]} 44. Kxg4 {[%emt 0:00:12]} Kxc3 {[%emt 0:00:02]} 45. h4 {[%emt 0:00:15]} Kxd4 {[%emt 0:04:40]} 46. h5 {[%emt 0:00:25]} Ke5 {[%emt 0:00:32]} 47. Kg5 {[%emt 0:01:27]} c3 {[%emt 0:00:11]} 48. h6 {[%emt 0:01:21]} c2 {[%emt 0:00:07]} 49. Kg6 {[%emt 0:00:14]} c1=Q {[%emt 0:00:14]} 50. h7 {[%emt 0:00:13]} Qh1 {[%emt 0:00:15]} 51. Kg7 {[%emt 0:00:11]} Qxh7+ {[%emt 0:00:11]} 52. Kxh7 {[%emt 0:00:13]} d4 {[%emt 0:00:04]} 0-1

[Event "Hungarian Youth-ch U12 2022"]
[Site "Eger"]
[Date "2022.07.29"]
[Round "7.4"]
[White "Lehocz, Jozsef Jr."]
[Black "Onodi, Miklos"]
[Result "1-0"]
[ECO "B21"]
[WhiteElo "1919"]
[BlackElo "1901"]
[Annotator "TA"]
[PlyCount "75"]
[EventDate "2022.07.21"]
[EventType "tourn"]
[EventCountry "HUN"]
[SourceTitle "playchess.com"]
[Source "ChessBase"]
[SourceQuality "1"]
[TimeControl "40/5400+30:1800+30"]

{[%evp 26,75,-4,-11,-4,-15,-13,-23,-22,-13,-21,-47,157,141,142,153,139,118,120,0,145,123,235,217,225,220,782,774,29978,458,435,230,230,222,419,271,256,250,402,400,435,437,422,385,454,452,536,533,1125,1106,1015,1005]} 1. e4 {[%emt 0:00:41][%cal Be2e4,Be4e5][%mdl 32]} c5 {[%emt 0:00:33]} 2. d4 {[%emt 0:00:05]} cxd4 {[%emt 0:00:05]} 3. c3 {[%emt 0:00:04]} Nf6 {[%emt 0:00:04]} 4. e5 {[%emt 0:00:52]} Nd5 {[%emt 0:00:09]} 5. Nf3 {[%emt 0:00:10]} Nc6 {[%emt 0:00:04]} 6. Bc4 {[%emt 0:00:46]} Nb6 {[%emt 0:00:04]} 7. Bb3 {[%emt 0:00:08]} d5 {[%emt 0:00:10]} 8. exd6 {[%emt 0:02:09]} Qxd6 {[%emt 0:00:26]} 9. O-O {[%emt 0:01:03]} Be6 {[%emt 0:00:33]} 10. Bxe6 {[%emt 0:03:26]} Qxe6 {[%emt 0:01:26]} 11. Nxd4 {[%emt 0:00:39]} Nxd4 {[%emt 0:00:08]} 12. Qxd4 {[%emt 0:01:10]} Rd8 {[%emt 0:00:16]} 13. Qh4 {[%emt 0:10:01]} Qe2 {[%emt 0:00:37]} 14. Nd2 {[%emt 0:06:25]} Rxd2 {[%emt 0:04:22] B22: Sicilian: 2 c3.} 15. Bxd2 {[%emt 0:00:12]} Qxd2 {[%emt 0:00:03]} 16. Rad1 {[%emt 0:07:13]} Qh6 {[%emt 0:00:19] Black has an edge.} 17. Qg3 {[%emt 0:10:28] Threatening mate with Qb8+.} (17. Qd4 Qd6 18. Qg4 Qc7 $15) 17... Qc6 {[%emt 0:00:53]} 18. Rd4 {[%emt 0:01:47]} Nc8 $2 {[%emt 0:08:14]} (18... f6 $15 {stays ahead.} 19. Qb8+ Kf7) 19. Rfd1 $1 $16 {[%emt 0:04:52][%csl Gd1][%cal Rd4d8][%mdl 1024] White has strong compensation.} Nd6 {[%emt 0:02:04]} 20. Qe5 $40 {[%emt 0:01:15][%mdl 128] White attacks with force.} Kd7 {[%emt 0:00:59]} 21. c4 $1 {[%emt 0:07:55] 0x0.0013bb769b48dp-1022s more active pieces. The black rooks are badly placed.} f6 {[%emt 0:01:41] [#]} (21... Kc8 $2 22. c5 Kb8 23. cxd6 exd6 24. Qe3 $18) 22. Qg3 $146 {[%emt 0:01:56]} ({White should play} 22. Qf5+ $1 $16 Kc7 23. Qa5+ Kb8 24. c5) ({Predecessor:} 22. Qa5 e5 23. Rxd6+ Bxd6 24. c5 Rc8 25. cxd6 a6 26. Qb4 Ke8 27. Qb3 Kf8 28. h3 {1-0 (36) Voros,G (2069)-Takacs,L (2110) Slovakia 2015}) 22... g6 {[%emt 0:02:43] [#] White stays focused until the end.} (22... Ke8 $11 {keeps the balance.}) 23. b4 $1 {[%emt 0:02:35]} b6 {[%emt 0:06:25] [#] Against c5} (23... Ke8 $16) 24. Qa3 $1 $18 {[%emt 0:01:01] Strongly threatening c5. Really sharp!} ({Weaker is} 24. b5 Qb7 $11) 24... Ke8 {[%emt 0:09:44]} 25. Qxa7 {[%emt 0:07:07] Hoping for c5.} Bg7 $2 {[%emt 0:04:10] [#]} (25... Nxc4 26. Rc1 (26. Rxc4 $2 Qxc4 27. Qxb6 Qxa2 $19) 26... b5) 26. Rxd6 $1 {[%emt 0:01:11][%mdl 576] Pin} Qxc4 {[%emt 0:00:53]} (26... Qe4 27. Qa4+) 27. Qa8+ {[%emt 0:00:47]} (27. Re1 $142 Bf8 28. Rxf6 Qd5 29. Qxb6 Rg8 30. Qb8+ Qd8 31. Qb5+ Qd7 32. Qc4) 27... Kf7 {[%emt 0:00:16]} 28. Qd5+ {[%emt 0:00:10]} (28. Rd8 $142 Rxd8 29. Qxd8) 28... Qxd5 {[%emt 0:00:05]} 29. R6xd5 {[%emt 0:00:07][%cal Bd6d5,Bd5b5,Bb5b6][%mdl 4128] Endgame And now Rd8 would win. KRR-KRB} f5 $2 {[%emt 0:01:12]} (29... Ra8 {was worth a try.} 30. Rb5 Rxa2 31. Rxb6 f5) 30. Rb5 {[%emt 0:00:15]} Ra8 {[%emt 0:01:03]} 31. Rd2 {[%emt 0:01:25]} ({Much less strong is} 31. Rxb6 Rxa2 32. g3 Rb2 $18) 31... Ra4 $2 {[%emt 0:00:14]} (31... Bc3 32. Rc2 Bd4) 32. Rxb6 {[%emt 0:00:36]} Bc3 {[%emt 0:00:07]} 33. Rc2 {[%emt 0:00:22]} Bd4 {[%emt 0:02:03]} 34. Rb7 {[%emt 0:00:17]} Ke6 {[%emt 0:00:48]} 35. g3 {[%emt 0:00:34] White is clearly winning.} Kd6 {[%emt 0:00:13]} 36. b5 {[%emt 0:01:16]} Ra5 {[%emt 0:00:26]} 37. Rc6+ {[%emt 0:00:56]} Kd5 {[%emt 0:00:19]} 38. Ra6 {[%emt 0:00:08] Weighted Error Value: White=0.39/Black=0.85} 1-0

[Event "Hungarian Youth-ch U12 2022"]
[Site "Eger"]
[Date "2022.07.29"]
[Round "7.5"]
[White "Janosi, Bence"]
[Black "Kovacs, Kristof"]
[Result "0-1"]
[ECO "D53"]
[WhiteElo "1428"]
[BlackElo "1812"]
[Annotator "NA COMBH"]
[PlyCount "100"]
[EventDate "2022.07.21"]
[EventType "tourn"]
[EventCountry "HUN"]
[SourceTitle "playchess.com"]
[Source "ChessBase"]
[SourceQuality "1"]
[TimeControl "40/5400+30:1800+30"]

{[%evp 8,96,23,32767,32767,32767,32767,32767,32767,32767,32767,32767,32767,32767,32767,-12,11,5,0,18,0,0,15,0,6,9,-4,0,15,8,32767,32767,32767,32767,32767,0,0,0,0,0,29,-146,-151,-229,104,81,71,0,0,32767,0,0,75,32767,32767,60,32767,32767,32767,32767,32767,57,48,5,68,63,58,56,67,65,66,0,0,0,52,0,0,0,0,-64,0,-62,0,0,0,-8,-14,32767,32767,-5181,-6104]} 1. d4 {[%emt 0:00:32]} d5 {[%emt 0:00:38]} 2. c4 {[%emt 0:00:11]} e6 {[%emt 0:00:10]} 3. Nc3 {[%emt 0:00:17]} Nf6 {[%emt 0:00:00]} 4. Bg5 {[%emt 0:00:00]} Be7 {[%emt 0:00:42]} 5. Nf3 {[%emt 0:01:14]} Nbd7 {[%emt 0:00:41]} 6. e3 {[%emt 0:00:41]} b6 {[%emt 0:00:38]} 7. Bf4 {[%emt 0:01:33]} c6 {[%emt 0:02:11]} 8. a3 {[%emt 0:04:59]} Bb7 {[%emt 0:02:20]} 9. Bd3 {[%emt 0:02:55]} O-O {[%emt 0:01:23]} 10. h3 {[%emt 0:02:28]} Rc8 {[%emt 0:01:33]} 11. O-O {[%emt 0:01:52]} (11. cxd5 {should be considered.} cxd5 12. Nb5) 11... dxc4 {[%emt 0:00:24]} 12. Bxc4 {[%emt 0:00:40]} c5 {[%emt 0:00:09]} 13. d5 {[%emt 0:02:03]} exd5 {[%emt 0:01:14]} 14. Nxd5 {[%emt 0:00:43]} Nxd5 {[%emt 0:00:23]} 15. Bxd5 {[%emt 0:00:50]} Ba6 {[%emt 0:00:48]} 16. Re1 {[%emt 0:02:28]} Nf6 {[%emt 0:00:10]} 17. Bb3 {[%emt 0:03:54]} Qxd1 {[%emt 0:06:27]} 18. Raxd1 {[%emt 0:01:50]} c4 {[%emt 0:02:18]} 19. Bc2 {[%emt 0:01:21]} Rfd8 {[%emt 0:01:20]} 20. Ne5 {[%emt 0:04:13]} Nd5 {[%emt 0:02:25]} 21. Bf5 {[%emt 0:03:05]} Rc5 {[%emt 0:08:23]} 22. Bg3 {[%emt 0:26:00]} g6 {[%emt 0:01:03]} 23. Be4 {[%emt 0:05:18]} Bf6 {[%emt 0:05:47]} 24. Nc6 $2 {[%emt 0:05:33]} Rxc6 {[%emt 0:00:07]} 25. Bxd5 {[%emt 0:00:23]} (25. Rxd5 $17 Rxd5 26. Bxd5) 25... Rxd5 $2 {[%emt 0:00:45]} 26. Rxd5 {[%emt 0:00:45]} Bxb2 {[%emt 0:00:04] [#]} 27. Be5 {[%emt 0:02:35]} ({White should play} 27. Rd7 $1 $16) 27... Bxe5 {[%emt 0:00:19]} 28. Rxe5 {[%emt 0:00:14]} c3 {[%emt 0:00:32]} 29. Rc1 {[%emt 0:01:25]} Bc8 {[%emt 0:01:05]} (29... c2 $11 {remains equal.}) 30. Kf1 {[%emt 0:02:44]} Be6 {[%emt 0:00:30]} 31. Ke1 {[%emt 0:02:56]} a5 {[%emt 0:00:13]} 32. f3 {[%emt 0:06:58]} Bb3 {[%emt 0:00:18]} 33. Re8+ {[%emt 0:00:38]} Kg7 {[%emt 0:00:05]} 34. Rd8 {[%emt 0:00:37]} b5 {[%emt 0:00:23]} 35. Ra8 {[%emt 0:05:23]} (35. Ke2 $14) 35... a4 {[%emt 0:00:06]} (35... c2 $1 $11 36. Rd8 (36. Rxa5 $2 Rd6 $19) 36... Kf6) 36. Rd8 {[%emt 0:00:42]} h5 {[%emt 0:00:56]} 37. Rd3 {[%emt 0:01:16]} c2 {[%emt 0:00:32]} 38. Kd2 {[%emt 0:00:29]} Kf6 $11 {[%emt 0:00:11]} 39. Rc3 {[%emt 0:00:00]} (39. h4 $14) 39... Rd6+ {[%emt 0:00:00]} 40. Rd3 {[%emt 0:00:00]} Rb6 {[%emt 0:00:00]} 41. Rxc2 {[%emt 0:02:43]} (41. Rd4 $14) 41... Bxc2 {[%emt 0:02:37]} 42. Kxc2 {[%emt 0:00:15]} Ke5 {[%emt 0:00:15]} 43. Kb2 {[%emt 0:07:15]} ({Better is} 43. Rd7 $11) 43... f5 {[%emt 0:00:11]} (43... b4 $1 $15) 44. Kc2 {[%emt 0:05:37]} (44. Rd4 $11) 44... Rc6+ {[%emt 0:00:26]} (44... b4 $15) 45. Kd2 {[%emt 0:01:07]} h4 {[%emt 0:00:12]} 46. f4+ {[%emt 0:01:16]} Ke6 {[%emt 0:00:21]} 47. Rd8 {[%emt 0:01:05]} Rd6+ {[%emt 0:00:10]} 48. Rxd6+ {[%emt 0:00:13]} Kxd6 $19 {[%emt 0:00:04]} 49. Kc2 {[%emt 0:02:33]} Kc5 {[%emt 0:00:05]} 50. Kc3 {[%emt 0:01:30]} b4+ {[%emt 0:00:06]} 0-1